bitfinex-derivatives/quotes_ETHF0:USTF0_20260131
["timestamp","ask_amount","ask_price","bid_price","bid_amount"]
[1769879144079,0.00384616,2472.7,2470.8,4.03491123]
[1769879144378,0.00384616,2472.7,2470.8,4.0355176]
[1769879144580,4.47407508,2472.6,2470.8,0.0041707]
[1769879144786,0.20254,2472.5,2470.8,0.0041707]
[1769879145288,4.47407508,2472.6,2470.8,0.0041707]
[1769879145289,3.7820583,2472.1,2470.8,0.0041707]
[1769879145785,3.7820583,2471.9,2470.8,0.0041707]
[1769879146485,3.7820583,2472.3,2470.8,0.0041707]
[1769879146886,3.7820583,2472.3,2470.9,0.00356433]
[1769879147084,3.7820583,2472.1,2470.8,0.00773503]
[1769879147282,3.7820583,2472.1,2471.0,0.00356433]
[1769879147488,3.7820583,2471.9,2470.8,0.0041707]
[1769879148090,3.7820583,2471.2,2469.6,3.64]
[1769879148684,3.7820583,2471.0,2469.6,3.64]
[1769879149087,3.7820583,2471.0,2469.6,3.64487668]
[1769879149386,3.7820583,2472.0,2469.7,4.0313469]
[1769879149791,3.7820583,2471.8,2469.9,4.0313469]
[1769879150085,3.7820583,2471.8,2470.0,3.641]
[1769879150295,3.7820583,2471.8,2469.9,4.0313469]
[1769879150592,3.7820583,2471.8,2470.0,10.0453469]
[1769879150888,3.7820583,2471.8,2470.1,4.0313469]
[1769879151083,0.00384616,2472.7,2470.5,4.0313469]
[1769879151288,3.78590446,2472.7,2471.0,4.0313469]
[1769879151687,0.00384616,2472.7,2471.2,4.0313469]
[1769879151992,3.9844983,2473.6,2471.2,4.2339869]
[1769879152593,3.7820583,2473.1,2471.3,4.0313469]
[1769879152788,3.7820583,2472.9,2471.4,3.641]
[1769879152988,3.78571162,2472.9,2471.4,0.00437101]
[1769879153387,3.9846183,2472.3,2470.5,3.641]
[1769879153589,3.9846183,2472.3,2470.5,4.0313469]
[1769879153893,3.7820583,2472.1,2470.6,3.641]
[1769879154095,3.7820583,2471.9,2470.2,3.641]
[1769879154296,3.7820583,2470.6,2468.8,4.0313469]
[1769879154494,3.7820583,2470.6,2468.7,3.641]
[1769879154495,3.7820583,2470.6,2469.0,4.0313469]
[1769879154691,3.7820583,2471.3,2469.6,0.00289206]
[1769879154891,3.7820583,2471.3,2469.4,4.0313469]
[1769879155084,3.7820583,2471.3,2469.7,4.03423896]
[1769879155284,3.7820583,2471.3,2469.7,4.03526135]
[1769879155486,3.7859122,2471.3,2470.1,0.00289206]
[1769879155689,3.7859122,2471.3,2469.9,0.00289206]
[1769879155893,8.06221499,2471.2,2469.9,3.642]
[1769879156093,3.7820583,2471.1,2469.9,3.642]
[1769879156293,3.7820583,2471.1,2469.7,0.00391445]
[1769879156494,3.7820583,2471.0,2469.7,0.00391445]
[1769879156692,3.7820583,2470.7,2469.7,0.00391445]
[1769879156887,0.0038539,2471.3,2468.6,4.0313469]
[1769879156888,3.7820583,2470.5,2468.6,4.0313469]
[1769879157088,0.54075054,2470.6,2469.0,4.03423896]
[1769879157298,3.7859122,2471.3,2469.3,4.2341369]
[1769879157591,3.7859122,2471.3,2469.5,4.0313469]
[1769879157792,3.7859122,2471.3,2469.6,4.0313469]
[1769879157997,3.7859122,2471.3,2469.7,3.642]
[1769879158198,3.7859122,2471.3,2469.7,3.64489206]
[1769879158390,4.51622327,2471.2,2469.6,0.00354334]
[1769879158592,3.7820583,2471.1,2469.6,3.64554334]
[1769879158792,3.7820583,2471.1,2469.6,0.00354334]
[1769879158988,3.7820583,2471.1,2469.6,3.64554334]
[1769879159193,3.7820583,2471.1,2469.8,0.00289206]
[1769879159697,3.7820583,2471.1,2470.0,0.00289206]
[1769879159893,3.7820583,2471.1,2469.7,4.0313469]
[1769879160097,3.7820583,2471.2,2469.6,0.00354334]
[1769879160292,0.0038539,2471.3,2468.7,4.0313469]
[1769879160293,3.7820583,2470.9,2469.1,4.0313469]
[1769879160598,3.7859122,2471.3,2469.0,4.0313469]
[1769879160801,3.7820583,2469.2,2465.1,2.80753788]
[1769879161001,0.20293,2467.7,2465.1,4.0313469]
[1769879161197,3.7820583,2467.6,2465.1,4.0352778]
[1769879161497,3.7820583,2467.5,2465.5,4.0313469]
[1769879161692,3.7820583,2467.1,2465.1,0.0039309]
[1769879161897,3.9850383,2467.1,2465.1,0.0039309]
[1769879162098,3.7820583,2466.9,2465.1,0.0039309]
[1769879162296,3.9850583,2466.9,2465.1,0.0039309]
[1769879162505,3.7820583,2466.7,2465.1,0.0039309]
[1769879162794,0.00314149,2467.7,2465.1,0.0039309]
[1769879162795,3.7820583,2466.5,2465.1,0.0039309]
[1769879162997,3.48790547,2466.5,2465.7,0.00682296]
[1769879163299,0.00314149,2467.7,2464.8,4.0313469]
[1769879163491,0.00314149,2467.7,2465.0,4.0313469]
[1769879163694,4.28473887,2466.8,2464.7,0.20317]
[1769879163895,0.20295,2467.5,2464.7,4.23917629]
[1769879164095,4.28473887,2467.4,2464.7,7.88317629]
[1769879164397,0.20303,2466.5,2464.7,0.00465939]
[1769879164596,3.645,2467.5,2463.0,3.645]
[1769879164597,0.20298,2467.1,2463.0,3.645]
[1769879164797,4.34423359,2466.4,2463.2,4.0313469]
[1769879165001,8.12629189,2466.6,2464.8,4.0313469]
[1769879165198,3.7820583,2466.5,2464.3,4.0313469]
[1769879165501,3.7820583,2466.4,2464.3,7.68061126]
[1769879165896,4.24118554,2466.3,2465.2,0.00682296]
[1769879166095,3.7820583,2466.7,2465.0,4.0313469]
[1769879166294,3.7820583,2466.7,2465.4,0.00682296]
[1769879166495,3.9850883,2466.5,2463.9,4.0313469]
[1769879167000,3.7820583,2466.2,2463.9,4.0313469]
[1769879167200,3.7820583,2466.2,2463.5,3.646]
[1769879167201,0.20298,2467.2,2464.5,4.12376066]
[1769879167498,3.99552955,2467.1,2464.7,3.92057066]
[1769879167701,4.25939593,2467.5,2465.6,3.92057066]
[1769879167896,0.20286,2468.5,2465.8,3.92057066]
[1769879168498,25.526,2470.6,2465.7,3.85009]
[1769879168499,0.2028,2469.3,2466.1,3.92057066]
[1769879168704,0.32440881,2471.1,2467.8,3.92057066]
[1769879168897,0.20266,2471.0,2468.3,4.12345066]
[1769879169201,4.2514105,2471.0,2468.6,3.92057066]
[1769879169395,0.00284846,2471.0,2469.0,3.92057066]
[1769879169697,3.72129234,2473.9,2470.2,3.92057066]
[1769879169902,3.72129234,2473.9,2470.7,3.92057066]
[1769879170197,3.47586207,2473.8,2471.0,4.12322066]
[1769879170398,3.72129234,2474.6,2471.2,3.92057066]
[1769879170592,0.00351239,2473.8,2471.6,3.92057066]
[1769879170901,3.72129234,2475.3,2471.9,3.92057066]
[1769879171195,3.72129234,2475.8,2472.7,3.92057066]
[1769879171397,0.20217,2477.0,2473.4,3.92057066]
[1769879171398,3.72129234,2476.3,2473.4,3.92057066]
[1769879171597,3.72129234,2476.3,2472.8,6.022]
[1769879171598,3.72129234,2478.0,2474.0,3.92057066]
[1769879171802,3.72527716,2478.0,2474.6,3.92057066]
[1769879172097,3.72527716,2478.0,2474.8,3.92057066]
[1769879172491,0.00398482,2478.0,2475.1,3.92057066]
[1769879172696,0.00398482,2478.0,2475.5,3.92057066]
[1769879173098,0.00398482,2478.0,2475.9,3.92057066]
[1769879173398,0.00398482,2478.0,2476.1,3.92057066]
[1769879173701,0.00398482,2478.0,2476.3,3.92057066]
[1769879174498,3.72129234,2479.3,2476.3,3.92057066]
[1769879175299,3.72129234,2480.7,2477.1,3.92057066]
[1769879175604,3.72513301,2480.7,2477.4,3.92057066]
[1769879175799,3.72513301,2480.7,2477.6,3.92057066]
[1769879176190,3.72513301,2480.7,2477.8,3.92057066]
[1769879176191,0.00384067,2480.7,2477.8,3.92057066]
[1769879176398,3.72513301,2480.7,2478.0,3.92057066]
[1769879176904,3.72513301,2480.7,2478.2,3.92057066]
[1769879177401,0.00384067,2480.7,2478.2,3.92057066]
[1769879177800,3.72513301,2480.7,2477.8,0.00435678]
[1769879177995,3.72129234,2480.3,2477.8,0.00435678]
[1769879178598,3.72129234,2480.1,2477.8,0.00435678]
[1769879179003,3.72129234,2479.5,2476.6,3.92057066]
[1769879179300,3.72129234,2479.5,2476.1,3.92057066]
[1769879179495,3.72129234,2479.1,2476.1,3.92057066]
[1769879180198,3.72129234,2479.1,2476.1,3.92444205]
[1769879180597,3.72129234,2479.1,2476.3,3.92057066]
[1769879180905,3.72129234,2478.7,2476.1,0.00387139]
[1769879181203,3.92334234,2478.5,2476.1,0.00387139]
[1769879182106,3.72129234,2478.5,2476.1,3.92444205]
[1769879182500,3.72129234,2478.5,2476.1,0.00387139]
[1769879182800,3.72129234,2478.5,2476.1,3.92444205]
[1769879184108,3.69445823,2478.5,2476.1,3.92444205]
[1769879184305,3.89649823,2478.5,2476.1,0.00387139]
[1769879184502,3.89649823,2478.5,2476.1,3.92444205]
[1769879184696,3.69445823,2478.5,2476.1,3.92444205]
[1769879185298,3.69445823,2478.5,2476.1,4.12667205]
[1769879185508,0.00317723,2478.7,2476.4,3.92057066]
[1769879185708,0.00317723,2478.7,2476.7,3.92057066]
[1769879185896,0.00317723,2478.7,2476.2,3.92057066]
[1769879186102,3.72129234,2478.6,2476.2,3.92057066]
[1769879186298,3.72129234,2478.4,2476.1,0.00387139]
[1769879186605,3.72129234,2478.2,2476.1,0.00387139]
[1769879186798,3.72129234,2478.2,2476.1,3.92444205]
[1769879187206,3.72129234,2478.2,2476.1,0.00387139]
[1769879187506,3.72129234,2478.0,2476.1,0.00387139]
[1769879188006,3.72129234,2478.0,2474.8,5.72971232]
[1769879188007,3.72129234,2476.6,2474.9,3.92057066]
[1769879188204,3.72129234,2477.1,2474.9,3.92057066]
[1769879188704,3.72129234,2477.7,2475.2,3.92057066]
[1769879189105,0.00368174,2477.7,2475.5,4.12285066]
[1769879189307,3.72129234,2478.7,2476.3,3.92057066]
[1769879190005,3.72129234,2478.5,2476.3,3.92057066]
[1769879190302,3.72559938,2478.5,2475.8,3.92057066]
[1769879190506,3.72129234,2478.3,2475.8,3.92057066]
[1769879190907,3.72129234,2478.3,2475.9,3.92057066]
[1769879191103,3.72129234,2478.3,2475.9,4.12282066]
[1769879191610,3.72129234,2478.3,2476.1,4.12281066]
[1769879191999,3.72129234,2478.3,2476.1,3.92057066]
[1769879192507,3.92335234,2478.3,2476.1,3.92057066]
[1769879192902,3.72129234,2477.9,2476.1,3.92057066]
[1769879193099,3.636,2479.4,2477.0,3.92057066]
[1769879193100,3.72129234,2479.4,2477.0,3.92057066]
[1769879193301,3.72129234,2479.2,2477.0,3.92057066]
[1769879193603,7.656,2480.9,2477.0,3.92057066]
[1769879193604,3.72129234,2479.0,2477.0,3.92057066]
[1769879194110,3.72524392,2479.0,2477.0,0.00475755]
[1769879194301,3.72129234,2478.8,2477.0,0.00475755]
[1769879194609,3.72129234,2478.8,2477.0,3.92532821]
[1769879195103,3.72129234,2478.8,2477.0,0.00475755]
[1769879195701,3.72129234,2478.5,2477.0,0.00475755]
[1769879196200,0.00395158,2479.0,2475.5,3.635]
[1769879196201,3.72129234,2477.7,2475.5,7.55557066]
[1769879196409,3.92340234,2477.7,2475.5,7.55557066]
[1769879196703,3.72129234,2477.4,2475.5,7.55557066]
[1769879197098,3.72129234,2477.4,2475.5,7.55846965]
[1769879197306,3.96264237,2478.2,2475.6,3.86750465]
[1769879197500,3.96264237,2478.2,2475.6,4.06978465]
[1769879197905,4.16473237,2477.9,2475.6,3.86750465]
[1769879198306,3.96264237,2477.9,2476.1,2.61089917]
[1769879198509,3.96264237,2477.9,2476.2,3.86750465]
[1769879199006,3.96264237,2478.7,2476.4,3.86750465]
[1769879199212,3.96264237,2478.7,2476.9,3.86750465]
[1769879199412,3.96264237,2478.7,2477.1,3.86750465]
[1769879199613,0.00395158,2479.0,2477.1,3.86750465]
[1769879199812,0.00395158,2479.0,2477.1,4.06965465]
[1769879200214,0.00395158,2479.0,2477.6,3.86750465]
[1769879200414,1e-08,2479.0,2477.6,3.87176832]
[1769879202210,3.71488196,2479.0,2477.6,0.00426367]
[1769879203110,3.71488196,2479.0,2476.5,3.73017084]
[1769879203609,0.20205,2478.5,2476.5,3.73017084]
[1769879203815,3.71488195,2478.5,2476.7,3.73017084]
[1769879204216,3.71488195,2478.5,2476.7,3.73321174]
[1769879204613,3.91692195,2478.5,2476.7,3.73321174]
[1769879205316,3.91692195,2478.5,2476.7,0.0030409]
[1769879205513,3.71488195,2477.2,2475.6,3.73017084]
[1769879206412,3.71488195,2477.2,2475.6,3.73521043]
[1769879206413,3.71889697,2477.2,2475.6,3.73521043]
[1769879207315,3.71889697,2477.2,2475.6,0.00503959]
[1769879207711,3.71889697,2477.2,2475.6,3.73521043]
[1769879208110,3.71889697,2477.2,2475.6,0.00503959]
[1769879208310,3.92104697,2477.2,2475.6,0.00503959]
[1769879209318,3.92104697,2477.2,2475.6,3.73521043]
[1769879209710,3.71889697,2477.2,2475.6,3.73521043]
[1769879210721,0.00401502,2477.2,2475.8,3.73017084]
[1769879211723,0.00401502,2477.2,2476.0,3.73017084]
[1769879211917,3.71889697,2477.2,2475.6,0.00503959]
[1769879212112,3.92104697,2477.2,2475.6,0.00503959]
[1769879212315,3.71889697,2477.2,2475.6,3.73521043]
[1769879212721,3.92104697,2477.2,2475.6,0.00503959]
[1769879213622,3.71889697,2477.2,2475.6,3.73521043]
[1769879213816,0.00401502,2477.2,2475.6,6.3461096]
[1769879214116,0.00401502,2477.2,2475.7,3.93244084]
[1769879214319,0.00401502,2477.2,2475.9,3.73017084]
[1769879215016,0.00401502,2477.2,2475.6,2.61593876]
[1769879215017,3.71488195,2477.7,2476.2,3.73017084]
[1769879215318,3.635,2479.2,2475.7,3.73017084]
[1769879215319,3.71488195,2477.8,2475.7,3.73017084]
[1769879215522,3.71488195,2477.8,2475.7,3.93244084]
[1769879215722,3.71488195,2477.8,2475.9,3.73017084]
[1769879215923,3.71488195,2477.8,2475.9,3.93242084]
[1769879216117,3.71952983,2477.8,2475.9,3.93242084]
[1769879216322,0.00464788,2477.8,2476.4,3.73017084]
[1769879219024,3.71488195,2478.4,2476.7,3.73017084]
[1769879219919,0.00312592,2478.4,2476.7,3.93236084]
[1769879220114,3.71488195,2479.2,2477.1,3.73017084]
[1769879220314,3.71488195,2479.2,2477.4,3.73017084]
[1769879221222,3.71930171,2479.2,2477.4,3.73467329]
[1769879221421,0.00441976,2479.2,2477.4,3.93680329]
[1769879221626,0.00441976,2479.2,2477.6,3.73017084]
[1769879222325,0.00441976,2479.2,2477.6,3.93229084]
[1769879223118,0.00441976,2479.2,2477.8,3.73017084]
[1769879223323,3.71488195,2480.1,2478.4,3.73017084]
[1769879223523,3.71488195,2480.6,2478.6,3.73017084]
[1769879223921,25.444,2482.2,2478.3,6.002]
[1769879223922,3.71488195,2481.0,2479.0,3.73017084]
[1769879224422,3.71902743,2481.0,2479.2,3.73017084]
[1769879224623,3.71902743,2481.0,2479.2,3.73389911]
[1769879224824,3.71488195,2480.6,2479.2,0.00372827]
[1769879225027,3.71488195,2480.6,2478.4,3.73017084]
[1769879225028,3.71488195,2479.7,2478.0,3.73017084]
[1769879225524,3.634,2480.6,2477.3,3.634]
[1769879225525,3.71488195,2478.9,2477.3,3.73017084]
[1769879225922,3.71899292,2478.9,2477.3,3.73379767]
[1769879226517,3.71488195,2478.6,2477.3,0.00362683]
[1769879227025,3.71488195,2478.6,2477.3,3.96041738]
[1769879227224,0.20208,2478.1,2476.2,3.95679055]
[1769879227425,3.65494905,2478.0,2476.0,3.95679055]
[1769879228025,3.65494905,2478.8,2476.4,3.95679055]
[1769879228229,3.65494905,2478.6,2476.6,3.95679055]
[1769879228525,3.65494905,2478.4,2476.4,0.00464062]
[1769879228730,3.65494905,2477.9,2476.4,0.00464062]
[1769879229527,3.65494905,2478.4,2476.4,3.96143117]
[1769879229828,3.65906002,2478.9,2476.6,3.95679055]
[1769879230226,3.65906002,2478.9,2477.0,3.95679055]
[1769879230428,3.65494905,2479.7,2477.5,3.95679055]
[1769879231024,3.85692905,2479.3,2477.2,8.71621145]
[1769879231231,3.65494905,2478.9,2477.0,3.95679055]
[1769879231431,3.66008644,2478.9,2476.7,8.71621145]
[1769879231630,3.85701905,2478.2,2476.4,0.00464062]
[1769879231837,3.65494905,2477.8,2476.4,0.00464062]
[1769879232144,3.85704905,2477.8,2476.4,0.00464062]
[1769879232436,3.85704905,2477.8,2475.7,3.95679055]
[1769879233332,3.85704905,2477.8,2475.7,3.96147391]
[1769879233533,3.65494905,2477.6,2475.7,3.96147391]
[1769879234335,3.65494905,2478.1,2475.8,3.95679055]
[1769879235042,3.65494905,2478.1,2476.2,3.95679055]
[1769879236742,3.65494905,2478.8,2476.2,3.95679055]
[1769879237745,3.65494905,2478.8,2476.5,4.15899055]
[1769879238047,0.00513739,2478.9,2476.7,3.95679055]
[1769879238254,3.65494905,2480.2,2477.9,4.15888055]
[1769879238538,3.65494905,2480.0,2477.9,4.15888055]
[1769879238738,3.65494905,2479.8,2477.9,3.95679055]
[1769879239043,3.65494905,2479.4,2477.5,4.15891055]
[1769879239244,3.65494905,2479.4,2477.5,3.95679055]
[1769879239443,3.65494905,2479.1,2477.1,3.96079321]
[1769879241438,3.85693905,2479.1,2477.1,3.96079321]
[1769879242245,3.85695905,2478.9,2477.1,0.00400266]
[1769879242741,3.65494905,2478.7,2477.1,0.00400266]
[1769879243138,3.85697905,2478.7,2477.1,0.00400266]
[1769879244245,3.65494905,2481.0,2478.8,3.95679055]
[1769879244641,3.65494905,2481.5,2479.3,3.95679055]
[1769879245150,3.65494905,2481.5,2479.6,8.71621145]
[1769879245449,3.65844685,2481.5,2479.6,3.95679055]
[1769879245844,3.65844685,2481.5,2479.7,12.673002]
[1769879246146,3.65494905,2480.7,2479.3,0.00353568]
[1769879246345,3.65494905,2480.5,2478.5,8.71621145]
[1769879246545,3.65494905,2480.5,2478.6,3.95679055]
[1769879247049,3.65494905,2480.5,2478.7,12.673002]
[1769879247347,3.65494905,2480.5,2477.8,11.99824833]
[1769879247348,3.65494905,2480.2,2478.0,8.71621145]
[1769879247649,3.85691905,2479.4,2477.2,3.95679055]
[1769879247843,3.65494905,2479.2,2477.0,12.673002]
[1769879248349,3.66002899,2479.2,2477.1,3.95679055]
[1769879248650,3.66002899,2479.2,2477.1,12.673002]
[1769879248847,3.66002899,2479.2,2477.2,3.95679055]
[1769879249049,3.66002899,2479.2,2477.2,12.673002]
[1769879249249,3.66002899,2479.2,2477.3,3.95679055]
[1769879249849,0.00507994,2479.2,2477.4,3.95679055]
[1769879250050,0.00507994,2479.2,2477.8,3.95679055]
[1769879250345,0.00507994,2479.2,2477.8,16.306002]
[1769879250647,3.65494906,2479.2,2477.8,8.71621145]
[1769879250950,3.65494906,2479.2,2477.7,8.71621145]
[1769879251146,0.20203,2478.7,2477.0,0.00308005]
[1769879251344,0.20204,2478.6,2477.0,0.00308005]
[1769879252053,1e-08,2479.2,2477.0,0.00308005]
[1769879253146,0.20207,2478.2,2477.0,0.00308005]
[1769879254241,0.20201,2479.0,2477.0,0.00308005]
[1769879254453,0.20203,2478.7,2477.0,0.00308005]
[1769879254649,0.20203,2478.6,2477.0,4.0453248]
[1769879254951,1e-08,2479.2,2477.0,0.00308005]
[1769879255652,0.20206,2478.4,2477.0,0.00308005]
[1769879256453,0.20206,2478.3,2477.0,0.00308005]
[1769879257450,1e-08,2479.2,2477.0,4.04998219]
[1769879257845,0.20202,2478.8,2477.0,4.04998219]
[1769879258948,1e-08,2479.2,2477.0,0.00308005]
[1769879259353,0.20207,2478.2,2477.0,0.00308005]
[1769879259957,0.20208,2478.1,2477.0,0.00308005]
[1769879260255,0.20208,2478.0,2477.0,0.00308005]
[1769879260650,1e-08,2479.2,2475.9,4.04690214]
[1769879261158,0.20213,2477.5,2475.9,4.04690214]
[1769879261560,3.634,2478.6,2475.9,4.04690214]
[1769879261758,3.634,2478.6,2475.9,4.05204663]
[1769879261950,0.2021,2477.9,2475.9,4.05204663]
[1769879262353,1e-08,2479.2,2475.9,4.05204663]
[1769879262354,1e-08,2479.2,2478.1,3.96308694]
[1769879262553,5.53923321,2481.2,2478.0,0.20208]
[1769879262554,0.16005665,2481.2,2478.3,3.96308694]
[1769879262852,3.634,2482.2,2478.2,6.002]
[1769879262853,0.16005665,2481.7,2478.5,3.96308694]
[1769879263059,0.16005665,2481.7,2478.7,3.96308694]
[1769879263259,0.16005665,2481.7,2478.9,3.96308694]
[1769879263454,0.16407895,2481.7,2478.9,3.96607954]
[1769879263654,0.16407895,2481.7,2478.9,4.16808954]
[1769879264257,0.0040223,2481.7,2479.2,3.96358168]
[1769879264565,0.0040223,2481.7,2479.5,3.96358168]
[1769879264860,0.0040223,2481.7,2479.7,3.96358168]
[1769879265455,0.16308947,2481.7,2479.7,3.96358168]
[1769879266355,0.19968581,2481.6,2479.7,3.96358168]
[1769879266562,0.19968581,2481.6,2479.0,3.94327236]
[1769879266763,0.19968581,2481.3,2479.0,3.94327236]
[1769879266954,0.19968581,2481.1,2479.0,3.94327236]
[1769879267159,0.19968581,2480.9,2478.9,0.0029926]
[1769879267460,0.19968581,2480.4,2478.9,0.0029926]
[1769879269360,0.19968581,2480.4,2478.9,3.95462253]
[1769879269562,3.633,2480.8,2478.9,3.95462253]
[1769879269957,0.0040223,2481.7,2479.0,0.202]
[1769879270157,0.0040223,2481.7,2479.1,3.95162993]
[1769879270964,0.16329031,2481.7,2479.1,3.95162993]
[1769879271566,0.16329031,2481.7,2479.5,3.96348126]
[1769879271960,0.15926801,2481.5,2479.5,3.96348126]
[1769879272760,0.20184,2481.0,2479.0,3.96621045]
[1769879272961,0.15380964,2481.4,2479.0,3.96621045]
[1769879273163,0.15380964,2481.3,2479.0,3.96621045]
[1769879273961,0.15380964,2480.9,2479.0,3.96621045]
[1769879274161,3.632,2481.2,2478.9,0.0029926]
[1769879274162,0.14092935,2480.6,2478.9,0.0029926]
[1769879274559,0.14092935,2479.9,2478.1,3.97265059]
[1769879274757,0.14092935,2479.8,2478.1,3.97265059]
[1769879274964,0.20193,2479.9,2478.1,3.97265059]
[1769879275164,0.14092935,2479.8,2478.1,3.97265059]
[1769879275557,0.14092935,2479.6,2478.1,3.97265059]
[1769879275762,0.20195,2479.7,2478.1,3.97767709]
[1769879276668,0.32667084,2479.7,2478.1,3.97767709]
[1769879276866,0.12472084,2479.6,2478.1,3.97767709]
[1769879277572,0.20195,2479.7,2478.1,3.97767709]
[1769879277767,0.00473394,2479.8,2478.1,3.97767709]
[1769879281769,0.20187,2480.7,2478.1,3.97767709]
[1769879281971,3.632,2481.2,2478.1,3.97767709]
[1769879282173,0.32738252,2481.1,2478.9,3.980344]
[1769879282365,0.20185,2480.9,2478.9,3.980344]
[1769879282572,0.12554252,2480.4,2478.9,3.980344]
[1769879282772,0.32747252,2480.0,2478.2,3.980344]
[1769879282968,0.00381926,2480.4,2478.2,3.980344]
[1769879282969,0.12554252,2479.8,2478.2,3.980344]
[1769879283272,0.12554252,2479.6,2478.2,3.980344]
[1769879283773,0.20195,2479.7,2478.2,3.980344]
[1769879283971,0.12554252,2480.1,2478.2,3.980344]
[1769879284271,0.20353936,2479.8,2478.2,3.980344]
[1769879284674,0.19851286,2478.7,2476.9,10.33617126]
[1769879284868,0.40055286,2478.6,2477.0,3.94385883]
[1769879285075,0.19851286,2478.6,2477.0,3.94385883]
[1769879285474,0.40051286,2479.0,2477.0,3.94385883]
[1769879285869,0.40413663,2479.0,2477.0,3.94714588]
[1769879286071,0.40053286,2478.8,2477.0,3.94714588]
[1769879286776,0.20202,2478.8,2477.0,3.94714588]
[1769879288078,0.00362377,2479.0,2477.0,0.00328705]
[1769879288268,0.20208,2478.1,2477.0,0.00328705]
[1769879288468,0.20209,2477.9,2477.0,0.00328705]
[1769879288680,0.20211,2477.7,2476.1,4.04005188]
[1769879289072,0.20211,2477.7,2475.0,6.80479374]
[1769879289073,6.39162377,2479.0,2475.0,0.3156579]
[1769879289272,0.20212,2477.5,2473.6,11.99824833]
[1769879289471,0.20225,2476.0,2473.1,4.04005188]
[1769879289771,0.20225,2476.0,2473.1,4.04469417]
[1769879289979,0.20625664,2476.0,2473.3,4.04005188]
[1769879290169,0.20625664,2476.0,2473.3,8.07685484]
[1769879290373,0.20625664,2476.0,2473.3,4.04005188]
[1769879290572,0.20226,2475.9,2473.3,4.04005188]
[1769879290874,3.633,2475.8,2473.3,4.04005188]
[1769879291069,3.633,2475.8,2473.4,4.04005188]
[1769879291274,0.00400664,2476.0,2474.2,4.04005188]
[1769879291671,0.20207,2478.2,2475.7,4.04005188]
[1769879292069,0.20207,2478.2,2476.0,4.04005188]
[1769879292269,3.634,2478.8,2476.7,4.04005188]
[1769879292475,3.634,2478.8,2476.8,4.04005188]
[1769879292676,3.63852298,2478.8,2476.8,4.04415256]
[1769879293072,3.63852298,2478.8,2473.3,2.60737003]
[1769879293073,3.63852298,2478.8,2475.4,4.04005188]
[1769879293278,3.63852298,2478.8,2473.7,3.634]
[1769879293279,0.20217,2476.9,2474.9,4.04005188]
[1769879293575,3.634,2476.8,2473.8,4.04005188]
[1769879294070,3.634,2476.8,2473.2,4.04005188]
[1769879294269,0.20234,2474.9,2472.2,4.04451628]
[1769879294677,0.20224,2476.1,2472.9,4.04005188]
[1769879294978,3.63700201,2476.8,2472.9,4.04005188]
[1769879294979,0.2022,2476.6,2473.6,4.04005188]
[1769879295173,0.20221,2476.5,2473.9,4.04005188]
[1769879295576,0.00300201,2476.8,2475.1,4.04005188]
[1769879295780,0.20212,2477.6,2475.1,4.0437979]
[1769879296381,0.20214,2477.4,2475.1,4.0437979]
[1769879296677,0.20215,2477.2,2475.1,4.0437979]
[1769879297479,0.00460542,2477.4,2476.2,4.04005188]
[1769879297781,0.00460542,2477.4,2476.3,4.04005188]
[1769879298376,0.00460542,2477.4,2476.5,4.04005188]
[1769879298679,3.635,2478.4,2476.9,4.04005188]
[1769879299474,3.635,2478.4,2475.5,3.636]
[1769879299475,2.17783221,2477.7,2474.0,0.2024]
[1769879299674,2.369,2477.6,2473.4,10.24155255]
[1769879299984,0.20221,2476.5,2473.0,0.20249]
[1769879300179,0.20216,2477.1,2472.3,3.636]
[1769879300375,6.005,2477.5,2472.3,3.636]
[1769879300376,0.20227,2475.8,2472.3,3.636]
[1769879300577,2.17783221,2474.7,2472.3,3.63992062]
[1769879300771,2.17783221,2474.7,2472.5,4.03680296]
[1769879300977,2.17783221,2474.7,2472.3,3.63992062]
[1769879301478,0.80268488,2473.5,2471.1,4.04005188]
[1769879301674,0.20248,2473.2,2471.1,4.04005188]
[1769879301874,1.3493353,2473.4,2471.1,4.04005188]
[1769879302184,0.26996531,2473.1,2471.1,4.04005188]
[1769879302386,1.40543618,2473.4,2471.1,4.04005188]
[1769879302593,0.80268488,2472.3,2471.1,4.04377691]
[1769879302790,0.53994153,2473.0,2471.1,4.04377691]
[1769879302996,1.14068498,2473.4,2471.1,4.04377691]
[1769879303194,0.2528296,2473.2,2471.1,4.04377691]
[1769879303496,0.20257,2472.1,2471.1,0.00372503]
[1769879303691,0.20257,2472.1,2470.5,3.96363124]
[1769879303890,1.89007025,2472.0,2470.5,3.96363124]
[1769879304189,1.89007025,2472.0,2469.3,3.637]
[1769879304190,0.19164842,2471.9,2470.1,0.31900736]
[1769879304392,0.39427842,2471.4,2469.7,3.96363124]
[1769879304586,0.19164842,2472.0,2469.7,4.28667466]
[1769879304790,0.53800231,2471.3,2469.7,4.28667466]
[1769879305291,0.19164842,2471.6,2469.7,4.28667466]
[1769879305495,0.19164842,2470.3,2468.1,3.96363124]
[1769879306088,3.638,2470.4,2468.1,4.2792449]
[1769879306395,3.42589977,2470.3,2468.1,4.2792449]
[1769879306586,3.42589977,2470.3,2468.1,4.2842548]
[1769879306789,3.11409169,2470.9,2468.1,4.2842548]
[1769879306987,3.42589977,2471.0,2468.1,3.96864114]
[1769879307188,7.06869353,2474.0,2468.1,3.96864114]
[1769879307189,3.639,2471.8,2468.1,3.96864114]
[1769879307391,3.204277,2470.8,2468.1,3.96864114]
[1769879307693,0.18037428,2471.7,2468.1,0.0050099]
[1769879307897,0.20286,2468.5,2466.4,4.04005188]
[1769879308196,4.21780156,2468.4,2466.4,4.04005188]
[1769879308495,0.36494652,2467.6,2463.5,0.20327]
[1769879308685,0.36494652,2467.6,2461.4,10.24155255]
[1769879308686,0.36494652,2467.4,2463.7,0.33046671]
[1769879308891,0.36494652,2466.6,2463.7,0.00323944]
[1769879309092,0.36494652,2465.3,2460.0,0.5]
[1769879309400,6.96938586,2467.3,2460.0,0.5]
[1769879309401,4.39442586,2465.2,2461.5,0.00323944]
[1769879309694,0.36494652,2465.0,2461.2,0.00323944]
[1769879309890,0.36494652,2465.5,2462.0,0.00323944]
[1769879310094,0.25257038,2465.1,2462.0,0.00299281]
[1769879310294,0.45578038,2464.3,2462.0,0.00299281]
[1769879310599,0.25257038,2463.5,2461.0,4.06363124]
[1769879310896,0.25257038,2462.9,2460.0,4.46363124]
[1769879311093,0.25257038,2462.9,2460.0,4.56986349]
[1769879311393,4.68244423,2465.4,2461.5,3.96363124]
[1769879311588,4.68244423,2465.4,2462.8,3.96363124]
[1769879311793,2.82615618,2465.3,2463.6,3.96363124]
[1769879312197,3.64686376,2466.2,2463.6,3.96363124]
[1769879312398,2.8017236,2465.2,2461.7,0.20342]
[1769879312591,3.64686376,2465.8,2463.0,0.10623225]
[1769879312794,3.64686376,2465.8,2461.4,2.375]